[Event "*** Titled Tuesday Blitz"]
[Site "Chess.com"]
[Date "2020.12.01"]
[Round "2"]
[White "bascheyaro"]
[Black "MathiasWomacka"]
[Result "1-0"]
[WhiteElo "2745"]
[BlackElo "2483"]
[TimeControl "180+1"]
[EndTime "10:17:55 PST"]
[Termination "bascheyaro won by resignation"]

1. d4 {[%clk 0:03:00.1]} 1... Nf6 {[%clk 0:02:59]} 2. Bf4 {[%clk 0:02:59.6]}
2... e6 {[%clk 0:02:58.6]} 3. e3 {[%clk 0:02:59.6]} 3... c5 {[%clk 0:02:58.6]}
4. Nf3 {[%clk 0:02:59.5]} 4... d5 {[%clk 0:02:58.5]} 5. Nc3 {[%clk 0:02:56.3]}
5... a6 {[%clk 0:02:51.6]} 6. a3 {[%clk 0:02:56.2]} 6... Bd6 {[%clk 0:02:47.4]}
7. dxc5 {[%clk 0:02:40.3]} 7... Bxc5 {[%clk 0:02:35.4]} 8. Na4 {[%clk
0:02:38.9]} 8... Qa5+ {[%clk 0:02:20.1]} 9. c3 {[%clk 0:02:38.8]} 9... Be7
{[%clk 0:02:19.8]} 10. b4 {[%clk 0:02:38]} 10... Qd8 {[%clk 0:02:18.9]} 11. c4
{[%clk 0:02:38.3]} 11... dxc4 {[%clk 0:02:05.6]} 12. Qxd8+ {[%clk 0:02:36.9]}
12... Bxd8 {[%clk 0:02:06.5]} 13. O-O-O {[%clk 0:02:16.4]} 13... Nbd7 {[%clk
0:02:02.9]} 14. Nc5 {[%clk 0:02:05.9]} 14... b5 {[%clk 0:01:56.7]} 15. Nxd7
{[%clk 0:02:00.4]} 15... Bxd7 {[%clk 0:01:57.6]} 16. Ne5 {[%clk 0:02:00.5]}
16... Ra7 {[%clk 0:01:25.9]} 17. Be2 {[%clk 0:02:00.3]} 17... Nd5 {[%clk
0:01:22.6]} 18. Bf3 {[%clk 0:02:00.3]} 18... O-O {[%clk 0:01:10.5]} 19. Nxd7
{[%clk 0:00:55]} 19... Rxd7 {[%clk 0:01:08.5]} 20. e4 {[%clk 0:00:55]} 20... Nf6
{[%clk 0:01:06.4]} 21. Rxd7 {[%clk 0:00:55]} 21... Nxd7 {[%clk 0:01:06.2]} 22.
Rd1 {[%clk 0:00:54.9]} 22... Nf6 {[%clk 0:01:00]} 23. Bd6 {[%clk 0:00:54.7]}
23... Re8 {[%clk 0:00:59.2]} 24. e5 {[%clk 0:00:55.1]} 24... Nd5 {[%clk
0:00:56.7]} 25. Bxd5 {[%clk 0:00:54.7]} 25... exd5 {[%clk 0:00:57.6]} 26. Rxd5
{[%clk 0:00:55.3]} 26... f6 {[%clk 0:00:57.1]} 27. f4 {[%clk 0:00:51.5]} 27...
fxe5 {[%clk 0:00:57.1]} 28. Bxe5 {[%clk 0:00:51.5]} 28... Bf6 {[%clk 0:00:55]}
29. Bxf6 {[%clk 0:00:51]} 29... gxf6 {[%clk 0:00:55]} 30. Rd6 {[%clk 0:00:51.3]}
30... Re2 {[%clk 0:00:51]} 31. g4 {[%clk 0:00:50.8]} 31... Rxh2 {[%clk
0:00:47.4]} 32. Rxf6 {[%clk 0:00:50.8]} 32... Rf2 {[%clk 0:00:37.3]} 33. f5
{[%clk 0:00:45.9]} 33... Rg2 {[%clk 0:00:34.9]} 34. Rxa6 {[%clk 0:00:45.8]}
34... Rxg4 {[%clk 0:00:34.9]} 35. Rb6 {[%clk 0:00:45.9]} 35... Rg3 {[%clk
0:00:33.9]} 36. Kb2 {[%clk 0:00:45.6]} 36... Rg2+ {[%clk 0:00:30.5]} 37. Kc3
{[%clk 0:00:45.9]} 37... Ra2 {[%clk 0:00:30.3]} 38. Rxb5 {[%clk 0:00:45.4]}
38... Rxa3+ {[%clk 0:00:30.4]} 39. Kxc4 {[%clk 0:00:45.9]} 39... Kf7 {[%clk
0:00:30.1]} 40. Rb7+ {[%clk 0:00:43.6]} 40... Kf6 {[%clk 0:00:29.4]} 41. Rxh7
{[%clk 0:00:43.5]} 41... Kxf5 {[%clk 0:00:29.6]} 42. Re7 {[%clk 0:00:43.6]}
42... Kf6 {[%clk 0:00:28.9]} 43. Re2 {[%clk 0:00:42.5]} 43... Ra8 {[%clk
0:00:27.8]} 44. b5 {[%clk 0:00:42.2]} 44... Rb8 {[%clk 0:00:26.1]} 45. Kc5
{[%clk 0:00:42.3]} 45... Rc8+ {[%clk 0:00:26.1]} 46. Kd6 {[%clk 0:00:42.2]}
46... Rd8+ {[%clk 0:00:23.8]} 47. Kc7 {[%clk 0:00:42.1]} 47... Rd1 {[%clk
0:00:23.1]} 48. b6 {[%clk 0:00:42.4]} 48... Rc1+ {[%clk 0:00:22]} 49. Kb8 {[%clk
0:00:42.8]} 49... Rb1 {[%clk 0:00:22]} 50. b7 {[%clk 0:00:43.2]} 50... Kf7
{[%clk 0:00:22.7]} 51. Re4 {[%clk 0:00:41.4]} 51... Rb2 {[%clk 0:00:20.7]} 52.
Kc7 {[%clk 0:00:41.4]} 52... Rc2+ {[%clk 0:00:20.7]} 53. Kb6 {[%clk 0:00:41.4]}
53... Rb2+ {[%clk 0:00:20.8]} 54. Kc6 {[%clk 0:00:41.8]} 54... Rc2+ {[%clk
0:00:20.4]} 55. Kb5 {[%clk 0:00:41.7]} 1-0

[Event "*** Titled Tuesday Blitz"]
[Site "Chess.com"]
[Date "2020.12.01"]
[Round "2"]
[White "Arseniy_Nesterov"]
[Black "Mr_Sinigami"]
[Result "1/2-1/2"]
[WhiteElo "2844"]
[BlackElo "2547"]
[TimeControl "180+1"]
[EndTime "10:17:56 PST"]
[Termination "Game drawn by repetition"]

1. d4 {[%clk 0:03:00.1]} 1... Nf6 {[%clk 0:02:58.8]} 2. c4 {[%clk 0:03:00.4]}
2... g6 {[%clk 0:02:58.9]} 3. Nc3 {[%clk 0:03:00.5]} 3... Bg7 {[%clk 0:02:59.4]}
4. e4 {[%clk 0:03:00.6]} 4... d6 {[%clk 0:02:59.9]} 5. Be2 {[%clk 0:03:00.9]}
5... O-O {[%clk 0:03:00.4]} 6. Bg5 {[%clk 0:03:01.5]} 6... h6 {[%clk 0:02:57.4]}
7. Be3 {[%clk 0:03:01.3]} 7... e5 {[%clk 0:02:56.7]} 8. d5 {[%clk 0:03:01.5]}
8... Na6 {[%clk 0:02:56.4]} 9. Qd2 {[%clk 0:03:01.3]} 9... h5 {[%clk 0:02:51.3]}
10. f3 {[%clk 0:02:56.9]} 10... c6 {[%clk 0:02:47.5]} 11. O-O-O {[%clk
0:02:51.5]} 11... cxd5 {[%clk 0:02:42.1]} 12. cxd5 {[%clk 0:02:51.4]} 12... Bd7
{[%clk 0:02:31.9]} 13. h4 {[%clk 0:02:46.5]} 13... Nc5 {[%clk 0:02:29.6]} 14.
Nh3 {[%clk 0:02:45.1]} 14... Rb8 {[%clk 0:02:08.3]} 15. Ng5 {[%clk 0:02:15]}
15... b5 {[%clk 0:02:03.5]} 16. Rdg1 {[%clk 0:02:11.5]} 16... b4 {[%clk
0:01:51]} 17. Nd1 {[%clk 0:02:11.6]} 17... Qa5 {[%clk 0:01:34.6]} 18. Kb1 {[%clk
0:02:10.7]} 18... Rfc8 {[%clk 0:01:34.5]} 19. b3 {[%clk 0:01:44.7]} 19... Ba4
{[%clk 0:00:58.6]} 20. Bxc5 {[%clk 0:01:35.3]} 20... Qxc5 {[%clk 0:00:57.5]} 21.
Nb2 {[%clk 0:01:28]} 21... Bb5 {[%clk 0:00:44.1]} 22. Bxb5 {[%clk 0:01:26.7]}
22... Qxb5 {[%clk 0:00:44.2]} 23. Rc1 {[%clk 0:01:23.5]} 23... a5 {[%clk
0:00:39.4]} 24. Rxc8+ {[%clk 0:01:16.6]} 24... Rxc8 {[%clk 0:00:39.2]} 25. Nc4
{[%clk 0:01:15.4]} 25... Bf8 {[%clk 0:00:38.4]} 26. Rc1 {[%clk 0:01:10.1]} 26...
a4 {[%clk 0:00:36.3]} 27. f4 {[%clk 0:00:54.2]} 27... axb3 {[%clk 0:00:34.7]}
28. axb3 {[%clk 0:00:55.1]} 28... Ng4 {[%clk 0:00:18.7]} 29. fxe5 {[%clk
0:00:35.1]} 29... Nxe5 {[%clk 0:00:18.3]} 30. Nxe5 {[%clk 0:00:28.6]} 30...
Rxc1+ {[%clk 0:00:19.2]} 31. Kxc1 {[%clk 0:00:28.2]} 31... dxe5 {[%clk
0:00:19.4]} 32. Qf2 {[%clk 0:00:27.6]} 32... Qd7 {[%clk 0:00:15]} 33. Kb1 {[%clk
0:00:25.5]} 33... Bh6 {[%clk 0:00:14]} 34. Qf6 {[%clk 0:00:24.2]} 34... Bxg5
{[%clk 0:00:13.6]} 35. hxg5 {[%clk 0:00:20.5]} 35... Qb5 {[%clk 0:00:13.6]} 36.
Qf3 {[%clk 0:00:15.9]} 36... Qc5 {[%clk 0:00:13.5]} 37. Qd3 {[%clk 0:00:13.6]}
37... Qg1+ {[%clk 0:00:12.9]} 38. Kc2 {[%clk 0:00:11.9]} 38... Qxg2+ {[%clk
0:00:13.3]} 39. Kc1 {[%clk 0:00:11.6]} 39... Qg1+ {[%clk 0:00:13.1]} 40. Kb2
{[%clk 0:00:11.7]} 40... Qg2+ {[%clk 0:00:13.2]} 41. Kb1 {[%clk 0:00:12]} 41...
Qg1+ {[%clk 0:00:12.7]} 42. Ka2 {[%clk 0:00:12.3]} 42... Qg2+ {[%clk 0:00:12.4]}
43. Kb1 {[%clk 0:00:12.7]} 43... Qg1+ {[%clk 0:00:10.9]} 44. Ka2 {[%clk
0:00:12.9]} 44... Qa7+ {[%clk 0:00:09.5]} 45. Kb1 {[%clk 0:00:12.8]} 45... Qg1+
{[%clk 0:00:09.5]} 1/2-1/2

[Event "*** Titled Tuesday Blitz"]
[Site "Chess.com"]
[Date "2020.12.01"]
[Round "2"]
[White "FearNoEvil12"]
[Black "sbouchet"]
[Result "0-1"]
[WhiteElo "2146"]
[BlackElo "2396"]
[TimeControl "180+1"]
[EndTime "10:17:56 PST"]
[Termination "sbouchet won by resignation"]

1. e4 {[%clk 0:03:00.9]} 1... c5 {[%clk 0:02:58.8]} 2. Nc3 {[%clk 0:02:59.6]}
2... g6 {[%clk 0:02:59.1]} 3. f4 {[%clk 0:02:59.9]} 3... Bg7 {[%clk 0:02:59.1]}
4. Nf3 {[%clk 0:03:00.4]} 4... a6 {[%clk 0:02:58.1]} 5. a4 {[%clk 0:02:58.2]}
5... Nc6 {[%clk 0:02:55]} 6. Bc4 {[%clk 0:02:58.5]} 6... e6 {[%clk 0:02:54.6]}
7. f5 {[%clk 0:02:59]} 7... Nge7 {[%clk 0:02:41.2]} 8. fxg6 {[%clk 0:02:58.3]}
8... hxg6 {[%clk 0:02:40.2]} 9. d3 {[%clk 0:02:58.7]} 9... d5 {[%clk 0:02:39.4]}
10. Bb3 {[%clk 0:02:57.8]} 10... Nd4 {[%clk 0:02:30.2]} 11. O-O {[%clk
0:02:54.4]} 11... Nxb3 {[%clk 0:02:28.9]} 12. cxb3 {[%clk 0:02:53.6]} 12... dxe4
{[%clk 0:01:54.9]} 13. dxe4 {[%clk 0:02:50]} 13... Qxd1 {[%clk 0:01:53.3]} 14.
Rxd1 {[%clk 0:02:50.3]} 14... Nc6 {[%clk 0:01:48.6]} 15. Be3 {[%clk 0:02:49]}
15... b6 {[%clk 0:01:46.9]} 16. Rd2 {[%clk 0:02:40.1]} 16... Na5 {[%clk
0:01:36.6]} 17. Rd6 {[%clk 0:02:33.1]} 17... Rb8 {[%clk 0:01:30.6]} 18. Rad1
{[%clk 0:02:31]} 18... O-O {[%clk 0:01:30]} 19. Nd2 {[%clk 0:02:12.7]} 19... Be5
{[%clk 0:01:27.3]} 20. Rd3 {[%clk 0:02:09.9]} 20... Bb7 {[%clk 0:01:25.7]} 21.
Ne2 {[%clk 0:01:53.2]} 21... Rfd8 {[%clk 0:01:22.1]} 22. Nf3 {[%clk 0:01:47.8]}
22... Bc7 {[%clk 0:01:12]} 23. Ng3 {[%clk 0:01:41]} 23... Nxb3 {[%clk
0:01:08.5]} 24. Kf2 {[%clk 0:01:34.1]} 24... c4 {[%clk 0:01:07.8]} 25. Rxd8+
{[%clk 0:01:32.3]} 25... Rxd8 {[%clk 0:01:08.7]} 26. Rxd8+ {[%clk 0:01:30.6]}
26... Bxd8 {[%clk 0:01:09.6]} 27. Ne5 {[%clk 0:01:26.1]} 27... b5 {[%clk
0:01:01.1]} 28. Ke2 {[%clk 0:01:19.8]} 28... Bc7 {[%clk 0:00:55.1]} 29. Nf3
{[%clk 0:01:14.4]} 29... bxa4 {[%clk 0:00:52.6]} 30. Nd2 {[%clk 0:01:09.5]}
30... Nxd2 {[%clk 0:00:41.8]} 31. Kxd2 {[%clk 0:01:10.4]} 31... Be5 {[%clk
0:00:41.8]} 32. Kc2 {[%clk 0:01:08.9]} 32... Kf8 {[%clk 0:00:40.6]} 33. Kb1
{[%clk 0:01:00.9]} 33... Ke7 {[%clk 0:00:39.2]} 34. Ka2 {[%clk 0:01:00.8]} 34...
Kd7 {[%clk 0:00:38.2]} 35. Ka3 {[%clk 0:01:00.5]} 35... Bc6 {[%clk 0:00:38.9]}
36. Bc1 {[%clk 0:00:56.4]} 36... a5 {[%clk 0:00:36.1]} 37. Bd2 {[%clk
0:00:55.2]} 37... Bd6+ {[%clk 0:00:34.2]} 38. Ka2 {[%clk 0:00:53.5]} 38... Bb4
{[%clk 0:00:34.8]} 39. Be3 {[%clk 0:00:50.3]} 39... f5 {[%clk 0:00:30.2]} 40.
exf5 {[%clk 0:00:49]} 40... exf5 {[%clk 0:00:30.6]} 41. Bd4 {[%clk 0:00:47.4]}
41... Bxg2 {[%clk 0:00:29.4]} 42. h4 {[%clk 0:00:46.1]} 42... Bf3 {[%clk
0:00:27.1]} 43. Be3 {[%clk 0:00:45.1]} 43... Ke6 {[%clk 0:00:26.1]} 44. Nf1
{[%clk 0:00:40.6]} 44... Ke5 {[%clk 0:00:22.5]} 45. Nd2 {[%clk 0:00:39.7]} 45...
Bd5 {[%clk 0:00:21.8]} 46. Kb1 {[%clk 0:00:34.2]} 46... f4 {[%clk 0:00:21]} 47.
Nxc4+ {[%clk 0:00:30.2]} 47... Bxc4 {[%clk 0:00:20.3]} 48. Bf2 {[%clk
0:00:30.1]} 48... Bb3 {[%clk 0:00:18.1]} 49. Kc1 {[%clk 0:00:29.6]} 49... Ke4
{[%clk 0:00:17.6]} 50. h5 {[%clk 0:00:22.1]} 50... gxh5 {[%clk 0:00:16.8]} 51.
Bh4 {[%clk 0:00:23]} 51... f3 {[%clk 0:00:16]} 52. Bf2 {[%clk 0:00:22.4]} 52...
Kd3 {[%clk 0:00:15.2]} 53. Bh4 {[%clk 0:00:21.6]} 53... Ke2 {[%clk 0:00:15]} 54.
Bg3 {[%clk 0:00:20.4]} 54... f2 {[%clk 0:00:15.1]} 55. Bxf2 {[%clk 0:00:20.4]}
55... Kxf2 {[%clk 0:00:15.7]} 56. Kb1 {[%clk 0:00:19.7]} 56... h4 {[%clk
0:00:15.9]} 0-1

[Event "*** Titled Tuesday Blitz"]
[Site "Chess.com"]
[Date "2020.12.01"]
[Round "2"]
[White "Mikhail_Golubev"]
[Black "AryanTari"]
[Result "0-1"]
[WhiteElo "2563"]
[BlackElo "2925"]
[TimeControl "180+1"]
[EndTime "10:17:57 PST"]
[Termination "AryanTari won by resignation"]

1. e4 {[%clk 0:03:00.2]} 1... e5 {[%clk 0:02:59.3]} 2. Nf3 {[%clk 0:02:59.9]}
2... Nc6 {[%clk 0:02:59.7]} 3. Bb5 {[%clk 0:02:59.4]} 3... a6 {[%clk 0:02:59.9]}
4. Ba4 {[%clk 0:02:58.5]} 4... f5 {[%clk 0:03:00.5]} 5. d3 {[%clk 0:02:55.3]}
5... fxe4 {[%clk 0:03:00.7]} 6. dxe4 {[%clk 0:02:54.2]} 6... Nf6 {[%clk
0:03:01.3]} 7. Bg5 {[%clk 0:02:34.2]} 7... Bb4+ {[%clk 0:02:52.5]} 8. c3 {[%clk
0:02:32.2]} 8... Be7 {[%clk 0:02:52.7]} 9. Bb3 {[%clk 0:02:24.5]} 9... d6 {[%clk
0:02:42.6]} 10. Nbd2 {[%clk 0:02:15.1]} 10... Na5 {[%clk 0:02:38.4]} 11. O-O
{[%clk 0:02:09.5]} 11... Bg4 {[%clk 0:02:30.2]} 12. h3 {[%clk 0:02:09.3]} 12...
Bh5 {[%clk 0:02:30.4]} 13. Be6 {[%clk 0:02:06.8]} 13... Bf7 {[%clk 0:02:08.2]}
14. Qa4+ {[%clk 0:01:58.9]} 14... Nc6 {[%clk 0:01:55.8]} 15. Bxf7+ {[%clk
0:01:58.6]} 15... Kxf7 {[%clk 0:01:56.7]} 16. Qb3+ {[%clk 0:01:58.4]} 16... Kg6
{[%clk 0:01:45.3]} 17. Qxb7 {[%clk 0:01:54.2]} 17... Qd7 {[%clk 0:01:44.7]} 18.
Qb3 {[%clk 0:01:50.2]} 18... Rhb8 {[%clk 0:01:44.1]} 19. Qd1 {[%clk 0:01:42.4]}
19... Kf7 {[%clk 0:01:43.6]} 20. b4 {[%clk 0:01:39.7]} 20... Qe6 {[%clk
0:01:36]} 21. Be3 {[%clk 0:01:33]} 21... h6 {[%clk 0:01:36]} 22. Nh4 {[%clk
0:01:28.3]} 22... Kg8 {[%clk 0:01:32.5]} 23. Nf5 {[%clk 0:01:26.7]} 23... Bf8
{[%clk 0:01:32.6]} 24. Qf3 {[%clk 0:01:23.8]} 24... Kh7 {[%clk 0:01:27.6]} 25.
a3 {[%clk 0:01:19.7]} 25... g6 {[%clk 0:01:27.3]} 26. Nxh6 {[%clk 0:01:13.7]}
26... Bxh6 {[%clk 0:01:23.6]} 27. Bxh6 {[%clk 0:01:10.7]} 27... Kxh6 {[%clk
0:01:23.8]} 28. Qe3+ {[%clk 0:01:11.6]} 28... Kg7 {[%clk 0:01:23]} 29. Nf3
{[%clk 0:01:12.2]} 29... Rf8 {[%clk 0:01:13.9]} 30. Ng5 {[%clk 0:01:10.2]} 30...
Qc4 {[%clk 0:01:13.8]} 31. f4 {[%clk 0:01:05.5]} 31... exf4 {[%clk 0:01:04.9]}
32. Rxf4 {[%clk 0:01:05.4]} 32... Nh5 {[%clk 0:01:01.5]} 33. Rh4 {[%clk
0:00:24.5]} 33... Ne5 {[%clk 0:00:55.7]} 34. Re1 {[%clk 0:00:20.9]} 34... Rf6
{[%clk 0:00:42.9]} 35. g4 {[%clk 0:00:16.1]} 35... Nf4 {[%clk 0:00:42.9]} 36.
Rh7+ {[%clk 0:00:15.7]} 36... Kg8 {[%clk 0:00:42.9]} 37. Re7 {[%clk 0:00:12.8]}
37... Raf8 {[%clk 0:00:27.9]} 38. Nh7 {[%clk 0:00:08.4]} 38... Nfd3 {[%clk
0:00:14.9]} 39. Nxf6+ {[%clk 0:00:07.1]} 39... Rxf6 {[%clk 0:00:15]} 40. Qh6
{[%clk 0:00:07.1]} 40... Nf3+ {[%clk 0:00:13.6]} 41. Kh1 {[%clk 0:00:06.6]}
41... Nf2+ {[%clk 0:00:14.1]} 42. Kg2 {[%clk 0:00:06.8]} 42... Nxe1+ {[%clk
0:00:14.6]} 43. Kg3 {[%clk 0:00:07.1]} 43... Qd3+ {[%clk 0:00:14]} 44. Kh4
{[%clk 0:00:06.8]} 44... Nf3+ {[%clk 0:00:13.3]} 45. Kg3 {[%clk 0:00:06.1]}
45... Nh1+ {[%clk 0:00:13.7]} 46. Kg2 {[%clk 0:00:04.5]} 46... Qe2+ {[%clk
0:00:14]} 0-1

[Event "*** Titled Tuesday Blitz"]
[Site "Chess.com"]
[Date "2020.12.01"]
[Round "2"]
[White "WonderChampion"]
[Black "Pikachess999"]
[Result "0-1"]
[WhiteElo "2030"]
[BlackElo "2356"]
[TimeControl "180+1"]
[EndTime "10:17:58 PST"]
[Termination "Pikachess999 won on time"]

1. d4 {[%clk 0:02:59.9]} 1... d5 {[%clk 0:02:58.6]} 2. Nf3 {[%clk 0:02:50.6]}
2... Nf6 {[%clk 0:02:57.5]} 3. e3 {[%clk 0:02:45.8]} 3... c5 {[%clk 0:02:53.5]}
4. dxc5 {[%clk 0:02:43.1]} 4... Nc6 {[%clk 0:02:48.8]} 5. c3 {[%clk 0:02:37.1]}
5... a5 {[%clk 0:02:38.8]} 6. Bb5 {[%clk 0:02:25.4]} 6... e6 {[%clk 0:02:28.8]}
7. Bxc6+ {[%clk 0:02:23.7]} 7... bxc6 {[%clk 0:02:28.8]} 8. Nd4 {[%clk
0:02:10.1]} 8... Bd7 {[%clk 0:02:17.1]} 9. O-O {[%clk 0:02:07.9]} 9... Bxc5
{[%clk 0:02:15.1]} 10. Bd2 {[%clk 0:02:05.4]} 10... O-O {[%clk 0:02:13.9]} 11.
b3 {[%clk 0:01:34.4]} 11... e5 {[%clk 0:02:10.1]} 12. Nf3 {[%clk 0:01:29.6]}
12... Qe7 {[%clk 0:02:09.6]} 13. Nh4 {[%clk 0:01:23]} 13... Ne4 {[%clk
0:02:01.6]} 14. Nf3 {[%clk 0:01:14.8]} 14... Bg4 {[%clk 0:01:51]} 15. h3 {[%clk
0:01:11.5]} 15... Bh5 {[%clk 0:01:50.9]} 16. c4 {[%clk 0:01:07.4]} 16... Rfd8
{[%clk 0:01:36.4]} 17. cxd5 {[%clk 0:01:03.8]} 17... cxd5 {[%clk 0:01:37.3]} 18.
Nc3 {[%clk 0:00:54.9]} 18... Nxd2 {[%clk 0:01:37.2]} 19. Qxd2 {[%clk 0:00:53.6]}
19... Bxf3 {[%clk 0:01:35.8]} 20. gxf3 {[%clk 0:00:54.5]} 20... d4 {[%clk
0:01:27.6]} 21. exd4 {[%clk 0:00:53]} 21... exd4 {[%clk 0:01:20]} 22. Ne4 {[%clk
0:00:51.2]} 22... Bb4 {[%clk 0:01:20.1]} 23. Qd3 {[%clk 0:00:49.8]} 23... f5
{[%clk 0:00:55]} 24. Ng3 {[%clk 0:00:47.5]} 24... g6 {[%clk 0:00:54.8]} 25. Rad1
{[%clk 0:00:45.3]} 25... Rac8 {[%clk 0:00:49.3]} 26. Ne2 {[%clk 0:00:40.7]}
26... Qh4 {[%clk 0:00:37.7]} 27. Kh2 {[%clk 0:00:31.6]} 27... Bd6+ {[%clk
0:00:22.6]} 28. Kg2 {[%clk 0:00:28.3]} 28... Be5 {[%clk 0:00:21.2]} 29. Ng3
{[%clk 0:00:26]} 29... Qf4 {[%clk 0:00:17]} 30. Rfe1 {[%clk 0:00:24.2]} 30... h5
{[%clk 0:00:13.8]} 31. Qe2 {[%clk 0:00:22.6]} 31... Re8 {[%clk 0:00:12.8]} 32.
Qd3 {[%clk 0:00:20.8]} 32... h4 {[%clk 0:00:12.6]} 33. Ne2 {[%clk 0:00:11]}
33... Qh2+ {[%clk 0:00:12.4]} 34. Kf1 {[%clk 0:00:11.1]} 34... Qh1+ {[%clk
0:00:12.5]} 35. Ng1 {[%clk 0:00:11.4]} 35... Bh2 {[%clk 0:00:10.6]} 36. Rxe8+
{[%clk 0:00:05.4]} 36... Rxe8 {[%clk 0:00:11.5]} 37. Qc4+ {[%clk 0:00:05.9]}
37... Kg7 {[%clk 0:00:09.2]} 38. Qxd4+ {[%clk 0:00:04.6]} 38... Kh6 {[%clk
0:00:07.2]} 39. Qd2+ {[%clk 0:00:03.5]} 39... Kh5 {[%clk 0:00:07.3]} 0-1

[Event "*** Titled Tuesday Blitz"]
[Site "Chess.com"]
[Date "2020.12.01"]
[Round "2"]
[White "Paladin61"]
[Black "Xeniya2005"]
[Result "1-0"]
[WhiteElo "2669"]
[BlackElo "2434"]
[TimeControl "180+1"]
[EndTime "10:18:00 PST"]
[Termination "Paladin61 won on time"]

1. b3 {[%clk 0:03:00.4]} 1... d5 {[%clk 0:02:57.1]} 2. Bb2 {[%clk 0:02:58.9]}
2... Bg4 {[%clk 0:02:56.2]} 3. f3 {[%clk 0:02:54.5]} 3... Bf5 {[%clk 0:02:54.4]}
4. e3 {[%clk 0:02:48]} 4... Nd7 {[%clk 0:02:50.7]} 5. Nc3 {[%clk 0:02:27.4]}
5... c6 {[%clk 0:02:42.4]} 6. e4 {[%clk 0:02:26.2]} 6... dxe4 {[%clk 0:02:39.8]}
7. fxe4 {[%clk 0:02:27.1]} 7... Bg6 {[%clk 0:02:39.3]} 8. Nf3 {[%clk 0:02:27.4]}
8... e5 {[%clk 0:02:38.7]} 9. g3 {[%clk 0:02:27.7]} 9... Ngf6 {[%clk 0:02:35.6]}
10. d3 {[%clk 0:02:26.6]} 10... Bc5 {[%clk 0:02:34.8]} 11. Bh3 {[%clk
0:02:22.1]} 11... Bh5 {[%clk 0:02:26.4]} 12. Qe2 {[%clk 0:02:16.1]} 12... Qa5
{[%clk 0:02:15.2]} 13. a3 {[%clk 0:02:10.3]} 13... Bd4 {[%clk 0:01:57.2]} 14. b4
{[%clk 0:01:58.2]} 14... Qc7 {[%clk 0:01:52.4]} 15. g4 {[%clk 0:01:35.8]} 15...
Nxg4 {[%clk 0:00:47.6]} 16. Nxd4 {[%clk 0:01:32.6]} 16... exd4 {[%clk
0:00:46.2]} 17. Bxg4 {[%clk 0:01:25]} 17... Bxg4 {[%clk 0:00:45.3]} 18. Qxg4
{[%clk 0:01:24.5]} 18... dxc3 {[%clk 0:00:45.2]} 19. Bxc3 {[%clk 0:01:25.3]}
19... O-O-O {[%clk 0:00:44.2]} 20. Qxg7 {[%clk 0:01:09.5]} 20... Rhg8 {[%clk
0:00:25.7]} 21. Qh6 {[%clk 0:01:07]} 21... Rg6 {[%clk 0:00:20.5]} 22. Qe3 {[%clk
0:01:01.3]} 22... c5 {[%clk 0:00:15.7]} 23. b5 {[%clk 0:00:55.8]} 23... Ne5
{[%clk 0:00:09.5]} 24. O-O-O {[%clk 0:00:46.2]} 24... Re6 {[%clk 0:00:08.4]} 25.
Rdf1 {[%clk 0:00:31.8]} 25... Rd7 {[%clk 0:00:06.5]} 26. Rhg1 {[%clk 0:00:31.2]}
26... Qd6 {[%clk 0:00:05.3]} 27. Bb2 {[%clk 0:00:19.9]} 27... b6 {[%clk
0:00:04.5]} 28. Rf5 {[%clk 0:00:19.1]} 28... Ng6 {[%clk 0:00:02.5]} 29. Qf2
{[%clk 0:00:17.1]} 29... Qc7 {[%clk 0:00:02.6]} 30. Rf1 {[%clk 0:00:16.7]} 30...
Ree7 {[%clk 0:00:02.5]} 31. h4 {[%clk 0:00:15.8]} 31... Nf8 {[%clk 0:00:01.5]}
32. h5 {[%clk 0:00:14.9]} 32... Ne6 {[%clk 0:00:01.6]} 33. Rg1 {[%clk
0:00:12.9]} 33... Nd4 {[%clk 0:00:01.5]} 34. Rg8+ {[%clk 0:00:11.2]} 34... Kb7
{[%clk 0:00:01.6]} 35. Bxd4 {[%clk 0:00:07.6]} 35... cxd4 {[%clk 0:00:01.9]} 36.
Qd2 {[%clk 0:00:07.9]} 36... Qd6 {[%clk 0:00:01.5]} 37. Kb2 {[%clk 0:00:07.5]}
37... Qe6 {[%clk 0:00:01.2]} 38. Rg7 {[%clk 0:00:06.4]} 38... Rc7 {[%clk
0:00:01.2]} 39. Qb4 {[%clk 0:00:05]} 39... Red7 {[%clk 0:00:01.3]} 40. Rxh7
{[%clk 0:00:04.4]} 1-0